{"text_format":"1","workbook":"xlsx","n_sheets":14,"sheets":["Cover","Info","Results","E01","E02","E03","E04","E05","E06","E07","E08","E09","E10","About"],"not_rendered":{"charts":11,"images":37,"macros":1,"external_links":0,"defined_names":15,"comments":0,"pivot_tables":0},"unopened":[],"bounds":{"document_bytes":16777216,"sheet_cells":100000,"rows_first":2000,"rows_last":500,"rows_between":2000,"halvings":0,"cell_chars":16384,"cell_head_chars":4096},"cells_cut":0,"cells_raw":0,"read":"whole","date_system":"1900"}

{"sheet":"Cover","index":0,"n_rows":0,"n_cols":0,"rows_kept":0,"cut":false,"hidden":false,"merged":[]}

{"sheet":"Info","index":1,"n_rows":39,"n_cols":4,"rows_kept":39,"cut":false,"hidden":false,"merged":[[38,1,38,3],[39,1,39,3],[2,1,2,2],[3,1,3,2],[4,1,4,2],[5,1,5,2],[6,1,6,2],[37,1,37,3],[31,1,31,2],[32,1,32,2],[33,1,33,2],[34,1,34,2],[35,1,35,2]]}
[]
[]
[null,"Хотуудын гамшгийг тэсвэрлэх чадавхийг үнэлэх онооны карт",null,"Хариу "]
[null,"Хотын нэр"]
[null,"Хотын төрөл (өөрийн удирдлага бүхий хот, нийслэлийн бүс гэх мэт)"]
[null,"Улс"]
[null,"Үнэлгээ хийсэн огноо"]
[]
[null,"Хотын талаарх мэдээлэл (шаардлагатай)","Хариу","Эх үүсвэрийн огноо"]
[null,"Хотын удирдах дээд албан тушаал (хотын захирагч г.м)"]
[null,"Хотын хүн амын тоо:   "]
[null,"Хотын нутаг дэвсгэрийн хэмжээ:"]
[null,"Хүн амын нягтрал (нэгж км2-д): "]
[null,"Залуучуудын (15-24 нас) эзлэх хувь: "]
[null,"Ахмад настны (65+) эзлэх хувь:"]
[null,"Хүйсийн байдал (өрх толгойлсон эмэгтэйчүүд):"]
[null,"Бичиг үсгийн боловсролын түвшин (бичиг үсэгт тайлагдсан хүн амын эзлэх хувь):"]
[null,"Ядуурлын түвшин (ядуу бус хүн амын эзлэх хувь):"]
[null,"Өрхийн дундаж орлого (ам.дол):"]
[null,"Хотын харьяат бус оршин суугчийн эзлэх хувь (%):"]
[null,"Хамгийн тохиолдох магадлалтай гамшгийн эрсдэл: "]
[null,"Хамгийн их хохирол учруулсан гамшиг: "]
[]
[null,"Хотын талаарх мэдээлэл (сонголтоор)","Хариу ","Эх үүсвэрийн огноо"]
[null,"Нийт өрхийн тоо: "]
[null,"Өрхийн ам бүлийн тоо:"]
[null,"Амьжиргааны зардал (ам.дол):"]
[null,"Улсын нэг хүнд ноогдох ДНБ (ам.дол)"]
[null,"Жини коэффициент:"]
[null,"Хотын нэг хүнд ноогдох ДНБ (ам.дол):"]
[]
[null,"Орон нутгийн засаг захиргааны Гамшгийн эрсдэлийг бууруулах, гамшгийг тэсвэрлэх чадавхийг сайжруулах баг ",null,"Хариу"]
[null,"Онооны картаар үнэлэх ажлыг удирдаж/зохион байгуулж буй хүний нэр"]
[null,"Байгууллага: "]
[null,"Холбоо барих хаяг, утас:"]
[null,"НҮБ-ын ГЭБОУСГ болон хамтран ажилладаг бусад байгууллагатай үнэлгээний үр дүнг хуваалцах, жишээ болгон ашиглуулах сонирхол бий эсэх"]
[]
[null,"Холбогдох байгууллагуудын мэдээлэл"]
[null,"Энэхүү үнэлгээг хийхэд дэмжлэг үзүүлсэн холбогдох бусад байгууллагуудыг доор жагсааж бичнэ үү"]

{"sheet":"Results","index":2,"n_rows":221,"n_cols":13,"rows_kept":221,"cut":false,"hidden":false,"merged":[[158,1,158,3],[134,1,134,6],[136,2,136,5],[137,2,137,5],[138,2,138,5],[139,2,139,5],[140,2,140,5],[141,2,141,5],[142,2,142,5],[146,1,146,6],[148,2,148,5],[149,2,149,5],[111,2,111,5],[98,2,98,5],[94,1,94,6],[96,2,96,5],[97,2,97,5],[106,1,106,6],[108,2,108,5],[109,2,109,5],[110,2,110,5],[99,2,99,5],[100,2,100,5],[101,2,101,5],[89,2,89,5],[85,1,85,6],[74,2,74,5],[75,2,75,5],[76,2,76,5],[77,2,77,5],[87,2,87,5],[88,2,88,5],[51,2,51,5],[61,2,61,5],[62,2,62,5],[63,2,63,5],[64,2,64,5],[131,2,131,5],[35,2,35,5],[36,2,36,5],[37,2,37,5],[123,2,123,5],[124,2,124,5],[125,2,125,5],[47,2,47,5],[48,2,48,5],[49,2,49,5],[50,2,50,5],[126,2,126,5],[127,2,127,5],[128,2,128,5],[129,2,129,5],[130,2,130,5]]}
[]
[]
[]
[]
[]
[]
[]
[]
[]
[]
[]
[]
[]
[]
[]
[]
[]
[]
[]
[]
[]
[]
[]
[]
[]
[]
[]
[]
[]
[]
[]
[]
[]
[null,"Үндсэн чиглэл 01: Бүтэц, зохион байгуулалтын тогтолцоо"]
[]
[null,{"$f":"C175","v":"P1.1"},{"$f":"E175","v":"Хотын мастер төлөвлөгөө (холбогдох бусад стратеги, төлөвлөгөө) нь Сендайн үйл ажиллагааны хүрээнд нийцсэн гамшгийн эрсдэлийг бууруулах арга замуудыг тусгаж, хэрэгжүүлж байгаа юу?    "},null,null,null,{"$f":"F175","v":0}]
[null,{"$f":"C176","v":"P1.2"},{"$f":"E176","v":"Гамшгийн эрсдэлийг бууруулах үйл ажиллагааг хэрэгжүүлэхэд шаардлагатай эрх мэдэл, нөөц бүхий олон байгууллагыг нэгтгэсэн эсвэл салбарын механизм бий юу?"},null,null,null,{"$f":"F176","v":0}]
[null,"P1.3","Гамшгийг тэсвэрлэх чадавхийг сайжруулах асуудал хотын үндсэн үйл ажиллагаанд хангалттай тусгагддаг уу?",null,null,null,0]
[]
[]
[]
[]
[]
[]
[]
[null,"Үндсэн чиглэл 02: Өнөөгийн болон ирээдүйн эрсдэлийн нөхцөл байдлыг тодорхойл, ойлго, ашигла"]
[]
[null,{"$f":"C178","v":"P2.1"},{"$f":"E178","v":"Хотод тулгарч буй гол аюулууд, тэдгээрийн тохиолдох магадлалын талаар хот мэддэг үү?    "},null,null,null,{"$f":"F178","v":0}]
[null,{"$f":"C179","v":"P2.2"},{"$f":"E179","v":"Хот болон нийтийн үйлчилгээний байгууллагууд, эрчим хүч, усан хангамж, зам, төмөр зам зэрэг дэд бүтцийн үйл ажиллагаа эрхэлдэг бүсийн болон үндэсний байгууллагууд хоорондоо эрсдэл, тогтолцоонд буй тулгамдсан асуудлууд, хотын эрсдэлийн цар хүрээний талаарх ойлголтоо хуваалцдаг уу? "},null,null,null,{"$f":"F179","v":0}]
[null,"P2.3",{"$f":"E180","v":"Аюул бүрээр эсвэл аюулын бүлгүүдээр хотын хэмжээний өртөх байдал, эмзэг байдлыг тодорхойлсон уу? "},null,null,null,0]
[null,"P2.4",{"$f":"E181","v":"Янз бүрийн нөхцөл байдлаас болж, өөр хотууд болон дэд бүтцэд цуварч үргэлжилсэн саатал, сүйрэл гарч болзошгүй талаар нэгдсэн ойлголт байдаг уу?"},null,null,null,0]
[null,"P2.5",{"$f":"E182","v":"Аюулын зураглал, эрсдэлийн талаар тодорхой мэдээлэл байдаг уу? Тэдгээрийн тогтмол шинэчилдэг үү? "},null,null,null,0]
[]
[]
[]
[]
[]
[]
[]
[null,"Үндсэн чиглэл 03: Гамшгийг тэсвэрлэх чадавхийг сайжруулахын тулд санхүүгийн чадавхийг дээшлүүлэх"]
[]
[null,{"$f":"C183","v":"P3.1"},{"$f":"E183","v":"Хотын удирдах гол байгууллагууд санхүүжилтийн бүхий л эх үүсвэр болон \"гамшгийг тэсвэрлэх чадавхийг сайжруулснаар гарах үр дүн\" хоорондоо нягт уялдаатайг ойлгож, чадавхийг сайжруулахад гаднаас санхүүжилт татах боломжит бүх арга замыг мэддэг,  томоохон хөрөнгө оруулалтыг хөөцөлддөг эсэх."},null,null,null,{"$f":"F183","v":0}]
[null,{"$f":"C184","v":"P3.2"},{"$f":"E184","v":"Хотод ГЭБ-д (аюулыг бууруулах, урьдчилан сэргийлэх, хор уршгийг арилгах, сэргээн босгох үйл ажиллагаанд) зориулсан шаардлагатай нөөц, онцгой байдлын үеийн санхүүгийн зохицуулалт зэрэг \"хамгаалагдсан\" төсөв байдаг уу?"},null,null,null,{"$f":"F184","v":0}]
[null,"P3.3","Хотын бизнес-олон нийтийн салбарууд даатгалд хэр хамрагддаг вэ?",null,null,null,0]
[null,"P3.4","Салбарууд, бизнес, нийгмийн хэсгүүд гамшгийг тэсвэрлэх чадавхийг сайжруулах чиглэлээр ямар идэвхжүүлэлтийг хэрэглэдэг вэ? ",null,null,null,0]
[]
[]
[]
[]
[]
[]
[]
[null,"Үндсэн чиглэл 04: Гамшгийг тэсвэрлэх чадавхтай хотыг хөгжүүлэ"]
[]
[null,{"$f":"C187","v":"P4.1"},{"$f":"E187","v":"Эдийн засгийн үйл ажиллагаа, хөдөө аж ахуйн үйлдвэрлэл, хүн амын төвлөрсөн газруудад эрсдэлийн үзүүлж болзошгүй нөлөөллийг тооцоолж, хотыг зөв бүсчилсэн үү?"},null,null,null,{"$f":"F187","v":0}]
[null,{"$f":"C188","v":"P4.2"},{"$f":"E188","v":"Хотын шинэ төлөвлөлт, хэрэгжилт гамшгийг тэсвэрлэх чадавхийг сайжруулах асуудлыг идэвхжүүлж байна уу?"},null,null,null,{"$f":"F188","v":0}]
[null,"P4.3","Барилгын дүрэм, журам, стандарт байдаг уу? Тэдгээр нь хотод тохиолддог аюул, эрсдэлийг шийдвэрлэдэг үү? Эдгээр стандарт нь тогтмол шинэчлэгддэг үү?",null,null,null,0]
[null,"P4.4"," Бүсчлэлийн журам, барилгын дүрэм журам, стандарт өргөнөөр ашиглагдаж, ёсчлон мөрдүүлж, шалгадаг уу?",null,null,null,0]
[]
[]
[]
[]
[]
[]
[]
[null,"Үндсэн чиглэл 05: Хүрээлэн буй орчныг хамгаалж, экосистемийг сайжруулах нь"]
[]
[null,{"$f":"C191","v":"P5.1"},{"$f":"E191","v":"Байгалийн баялаг гэхээс илүүтэйгээр байгаль хотод ямар үүрэгтэйг эсвэл ямар үйлчилгээ үзүүлдгийг хот мэддэг үү? "},null,null,null,{"$f":"F191","v":0}]
[null,{"$f":"C192","v":"P5.2"},{"$f":"E192","v":"Хотын хөгжил, дэд бүтцийн гол төслүүдэд ногоон, цэнхэр дэд бүтцийг бодлогоор дэмждэг үү?"},null,null,null,{"$f":"F192","v":0}]
[null,{"$f":"C193","v":"P5.3"},"Хотын хил хязгаараас гадна байгаа байгалийн баялаг хотод экосистемийн үйлчилгээ үзүүлж байдгийг хот мэддэг үү? Эдгээр баялгийг хамгаалах, удирдах талаар хөрш зэргэлдээ засаг захиргааны нэгжтэй хийсэн гэрээ бий юу? ",null,null,null,{"$f":"F193","v":0}]
[]
[]
[]
[]
[null,"Үндсэн чиглэл 06: Гамшгийг тэсвэрлэх чадавхийг сайжруулахын тулд бүтэц, зохион байгуулалтын чадавхийг бэхжүүлэх нь"]
[]
[null,{"$f":"C194","v":"P6.1"},{"$f":"E194","v":"Хотод гамшгийн эрсдэлийг бууруулах, гамшиг тохиолдсон үед хариу арга хэмжээ авахад шаардлагатай бүх чадвар, туршлага бий юу?"},null,null,null,{"$f":"F194","v":0}]
[null,{"$f":"C195","v":"P6.2"},{"$f":"E195","v":"Аюул, эрсдэл, гамшгийн нөхцөл байдлын талаарх мэдээллийг олон нийтэд зөв (ойлгомжтой, хэрэглэж болохуйцаар) хүргэх боломжийг хангах мэдээлэл, суваг бүхий олон нийттэй харилцах, мэдлэг ойлголт өгөх зохион байгуулалттай кампанит ажил явагддаг уу?"},null,null,null,{"$f":"F195","v":0}]
[null,"P6.3","Хотын гамшгийг тэсвэрлэх чадавхийг бэхжүүлэх үйл ажиллагаанд хамааралтай бусад байгууллагуудтай энэ талаарх мэдээллийг хэр хуваалцдаг вэ?",null,null,null,0]
[null,"P6.4",{"$f":"E197","v":"Эрсдэл, гамшгийг тэсвэрлэх чадавхийн асуудлаар хотын бүх салбар, түүний дотор захиргаа, бизнес, төрийн бус байгууллага, олон нийтэд зориулагдсан сургалтууд зохион байгуулагддаг уу?"},null,null,null,0]
[null,"P6.5",{"$f":"E198","v":"Сургалтын материалууд нь хотод нийтлэг хэрэглэгддэг ихэнх хэл дээр  байдаг уу?"},null,null,null,0]
[null,"P6.6","Хот адил төстэй бэрхшээлтэй тулгардаг бусад хотуудтай мэдлэгээ хуваалцаж, тэднээс суралцахыг зорьдог уу?",null,null,null,0]
[]
[]
[]
[]
[null,"Үндсэн чиглэл 07: Гамшгийг тэсвэрлэх чадавхийг сайжруулахын тулд нийгмийн чадавхийг ойлгож, бэхжүүлэх нь"]
[]
[null,{"$f":"C200","v":"P7.1"},{"$f":"E200","v":"Анхан шатны буюу олон нийтийн байгууллагууд хотын дотор хөрш зэргэлдээ газар/дүүргүүдийн эрсдэлийг бууруулах, гамшгийн дараах хариу арга хэмжээнд оролцдог уу?"},null,null,null,{"$f":"F200","v":0}]
[null,{"$f":"C201","v":"P7.2"},{"$f":"E201","v":"Хотын хамгийн эмзэг байдалтай хүн амд зориулсан тогтмол сургалтын хөтөлбөрүүд байдаг уу?"},null,null,null,{"$f":"F201","v":0}]
[null,"P7.3","Бизнесийн хэдэн хувь нь бизнесийн тасралтгүй ажиллагааны баримтжуулсан, сүүлийн 18 сарын хугацаанд тодотгосон төлөвлөгөөтэй вэ?",null,null,null,0]
[null,"P7.4",{"$f":"E203","v":"Гамшгийн эрсдэлийг бууруулах үйл ажиллагаанд хотын иргэдийн оролцоо, харилцаа хэр үр дүнтэй байдаг вэ? "},null,null,null,0]
[]
[]
[]
[]
[]
[]
[]
[]
[]
[null,"Үндсэн чиглэл 08: Дэд бүтцийн гамшгийг тэсвэрлэх чадавхийг сайжруулах нь"]
[]
[null,{"$f":"C204","v":"P8.1"},{"$f":"E204","v":"Нэн чухал дэд бүтцийн гамшгийг тэсвэрлэх чадавхийг сайжруулах нь хотын нэн тэргүүний зорилт мөн үү? Хот нэн чухал дэд бүтцийн төлөвлөгөө/стратегитай, түүнийгээ хэрэгжүүлдэг үү?"},null,null,null,{"$f":"F204","v":0}]
[null,{"$f":"C205","v":"P8.2"},{"$f":"E205","v":"Хамгаалалтын дэд бүтцүүд эрсдэлийн мэдээлэлд үндэслэн сайн төлөвлөгдөж, баригдсан уу?"},null,null,null,{"$f":"F205","v":0}]
[null,"P8.3","Хотод тохиолдож болзошгүй гамшгийн улмаас хотын нилээд хэсэгт эдгээр нэн чухал үйлчилгээ ноцтой тасалдах уу?",null,null,null,0]
[null,"P8.4",{"$f":"E207","v":"Хотод тохиолдож болзошгүй гамшгийн улмаас хотын нилээд хэсэгт үйлчилгээ ноцтой тасалдах уу? Тасалдал үүсэхэд эрчим хүчний дэд бүтцийн коридор аюулгүй үлдэх үү (цахилгаанд цохиулах аюулгүй байх гэх мэт)"},null,null,null,0]
[null,"P8.5","Хотод тохиолдож болзошгүй гамшгийн улмаас хотын нилээд хэсэгт үйлчилгээ ноцтой тасалдах уу? Тасалдал үүсэхэд тээврийн дэд бүтцийн коридор аюулгүй (үерийн эрсдэлгүй байх гэх мэт), ажилласаар байх уу?",null,null,null,0]
[null,"P8.6","Хотод тохиолдож болзошгүй гамшгийн улмаас хотын нилээд хэсэгт үйлчилгээ ноцтой тасалдах уу?",null,null,null,0]
[null,"P8.7","Хотод тохиолдож болзошгүй гамшгийн улмаас олон хүн гэмтэж, бэртвэл эрүүл мэндийн яаралтай тусламж үйлчилгээ үзүүлэх боломжтой юу?",null,null,null,0]
[null,"P8.8","Хамгийн ноцтой, \"хамгийн магадлалтай\" нөхцөл байдлын улмаас гэмтэл учрах эрсдэлтэй боловсролын байгууллагын барилга байгууламжийн хувь",null,null,null,0]
[null,{"$f":"C212","v":"P8.9"},"Цэргийн болон энгийн байгууллагын дэмжлэгтэйгээр анхны хариу арга хэмжээ авахад шаардлагатай техник, тоног төхөөрөмж бий юу?",null,null,null,0]
[]
[]
[null,"Үндсэн чиглэл 09: Гамшгийн хор уршгийг арилгах арга хэмжээг үр дүнтэй зохион байгуулах нь"]
[]
[null,{"$f":"C213","v":"P9.1"},{"$f":"E213","v":"Хот эрт зарлан мэдээлэх,  урьдчилсан мэдээ хүргэх төлөвлөгөө, стандарт үйл ажиллагааны журамтай юу? Эрт зарлан мэдээлэх системээр хотын хүн амын хэдэн хувьд хүрдэг вэ? "},null,null,null,{"$f":"F213","v":0}]
[null,{"$f":"C214","v":"P9.2"},{"$f":"E214","v":"Хотын гамшгийн үед авах арга хэмжээг тусгасан гамшгийн менежментийн / бэлэн байдлын / хор уршгийг арилгах үйл ажиллагааны төлөвлөгөө байдаг уу?"},null,null,null,{"$f":"F214","v":0}]
[null,"P9.3","Гамшгийн менежментийн байгууллага нь гамшгийн нөхцөл байдал өрнөсөн үед анхны хариу арга хэмжээ авах үйл ажиллагаанд дэмжлэг болохоор нэмж татах хангалттай бие бүрэлдэхүүнтэй юу? ",null,null,null,0]
[null,"P9.4","Тоног төхөөрөмж, хангалтын зүйлсийн хэрэгцээ шаардлага, түүнчлэн тоног төхөөрөмжийн боломжийг тодорхойлсон уу?",null,null,null,0]
[null,"P9.5","Гамшиг тохиолдсоны дараа хот хүн амаа хоол хүнс, түр хорогдох байраар үргэлжлүүлэн хангаж чадах уу? ",null,null,null,0]
[null,"P9.6","Хамгийн ноцтой, \"хамгийн магадлалтай\" нөхцөл байдал үүссэн үед бүх байгууллагын оролцоотой, стандарт үйл ажиллагааны журмаар ажиллахад зориулагдсан шуурхай ажиллагааны төв бий юу?",null,null,null,0]
[null,"P9.7",{"$f":"E219","v":"Дадлага сургуульд олон нийт, мэргэжлийн байгууллагууд аль аль нь оролцдог уу?"},null,null,null,{"$f":"F219","v":0}]
[]
[]
[]
[null,"Үндсэн чиглэл 10: Сэргээн босгох үйл ажиллагааг шуурхайлж, илүү сайжруулан барих"]
[]
[null,{"$f":"C220","v":"P10.1"},{"$f":"E220","v":"Эдийн засгийг сэргээх болон нийгмийн асуудлыг тусгасан гамшгийн дараах сэргээн босгох үйл ажиллагааны стратеги, үйл явц байдаг уу?"},null,null,null,{"$f":"F220","v":0}]
[null,{"$f":"C221","v":"P10.2"},{"$f":"E221","v":"Гамшгийн дараах үнэлгээнд хохирлын дүн шинжилгээ, авсан сургамжийг харгалзан үзэж, дахин барих төслүүдийн төлөвлөлт, хэрэгжилтэд тусгадаг уу?s?"},null,null,null,{"$f":"F221","v":0}]
[]
[]
[]
[]
[]
[]
[]
[]
[null,{"$f":"TODAY()","v":"2019-05-31"}]
[]
[]
[null,null,"Label","Name",null,"Essential","TotalScore","MaxScore","Label"]
[null,null,"S1","1.   Organise for Disaster Resilience",null,"E1",{"$f":"SUMIFS($F$175:$F$1154,$B$175:$B$1154,F163)","v":0},{"$f":"COUNTIFS($B$175:$B$221,F163)*3","v":9},"01",null,{"$f":"SUM(G163:G172)","v":0},{"$f":"K163/K164","v":0},{"$f":"CONCATENATE(\"The overall score for this assessment is \",SUM(G163:G172),\" / \",SUM(H163:H172))","v":"The overall score for this assessment is 0 / 141"}]
[null,null,"S2","2.   Identify, Understand and Use Current and Future Risk Scenarios",null,"E2",0,15,"02",null,{"$f":"SUM(H163:H172)","v":141},{"$f":"1-L163","v":1}]
[null,null,"S3","3.   Strengthen Financial Capacity for Resilience",null,"E3",0,12,"03"]
[null,null,"S4","4.   Pursue Resilient Urban Development and Design",null,"E4",0,12,"04"]
[null,null,"S5","5.   Safeguard Natural Buffers to Enhance Ecosystems’ Protective Functions",null,"E5",0,9,"05"]
[null,null,"S6","6.   Strengthen Institutional Capacity for Resilience",null,"E6",0,18,"06"]
[null,null,"S7","7.   Understand and Strengthen Societal Capacity for Resilience",null,"E7",0,12,"07"]
[null,null,"S8","8.   Increase Infrastructure Resilience",null,"E8",0,27,"08"]
[null,null,"S9","9.   Ensure Effective Disaster Response",null,"E9",0,21,"09"]
[null,null,"S10","10. Expedite Recovery and Build Back Better",null,"E10",0,6,"10"]
[]
[null,"Section","Ref",null,"Question","SelectedScore","ThisScore"]
[null,"E1","P1.1",null,"Хотын мастер төлөвлөгөө (холбогдох бусад стратеги, төлөвлөгөө) нь Сендайн үйл ажиллагааны хүрээнд нийцсэн гамшгийн эрсдэлийг бууруулах арга замуудыг тусгаж, хэрэгжүүлж байгаа юу?    ",{"$f":"IF(G175=\"\",0,IF(G175=0,0,4-G175))","v":0},{"$f":"'E01'!$E$7","v":0}]
[null,"E1","P1.2",null,"Гамшгийн эрсдэлийг бууруулах үйл ажиллагааг хэрэгжүүлэхэд шаардлагатай эрх мэдэл, нөөц бүхий олон байгууллагыг нэгтгэсэн эсвэл салбарын механизм бий юу?",{"$f":"IF(G176=\"\",0,IF(G176=0,0,4-G176))","v":0},{"$f":"'E01'!$E$18","v":0}]
[null,"E1","P1.3",null,"Гамшгийг тэсвэрлэх чадавхийг сайжруулах асуудал хотын үндсэн үйл ажиллагаанд хангалттай тусгагддаг уу?",0,{"$f":"'E01'!$E$29","v":0}]
[null,"E2","P2.1",null,"Хотод тулгарч буй гол аюулууд, тэдгээрийн тохиолдох магадлалын талаар хот мэддэг үү?    ",0,{"$f":"'E02'!$E$7","v":0}]
[null,"E2","P2.2",null,"Хот болон нийтийн үйлчилгээний байгууллагууд, эрчим хүч, усан хангамж, зам, төмөр зам зэрэг дэд бүтцийн үйл ажиллагаа эрхэлдэг бүсийн болон үндэсний байгууллагууд хоорондоо эрсдэл, тогтолцоонд буй тулгамдсан асуудлууд, хотын эрсдэлийн цар хүрээний талаарх ойлголтоо хуваалцдаг уу? ",0,{"$f":"'E02'!$E$18","v":0}]
[null,"E2","P2.3",null,"Аюул бүрээр эсвэл аюулын бүлгүүдээр хотын хэмжээний өртөх байдал, эмзэг байдлыг тодорхойлсон уу? ",0,{"$f":"'E02'!$E$29","v":0}]
[null,"E2","P2.4",null,"Янз бүрийн нөхцөл байдлаас болж, өөр хотууд болон дэд бүтцэд цуварч үргэлжилсэн саатал, сүйрэл гарч болзошгүй талаар нэгдсэн ойлголт байдаг уу?",0,{"$f":"'E02'!$E$40","v":0}]
[null,"E2","P2.5",null,"Аюулын зураглал, эрсдэлийн талаар тодорхой мэдээлэл байдаг уу? Тэдгээрийн тогтмол шинэчилдэг үү? ",0,{"$f":"'E02'!$E$51","v":0}]
[null,"E3","P3.1",null,"Хотын удирдах гол байгууллагууд санхүүжилтийн бүхий л эх үүсвэр болон \"гамшгийг тэсвэрлэх чадавхийг сайжруулснаар гарах үр дүн\" хоорондоо нягт уялдаатайг ойлгож, чадавхийг сайжруулахад гаднаас санхүүжилт татах боломжит бүх арга замыг мэддэг,  томоохон хөрөнгө оруулалтыг хөөцөлддөг эсэх.",0,{"$f":"'E03'!$E$7","v":0}]
[null,"E3","P3.2",null,"Хотод ГЭБ-д (аюулыг бууруулах, урьдчилан сэргийлэх, хор уршгийг арилгах, сэргээн босгох үйл ажиллагаанд) зориулсан шаардлагатай нөөц, онцгой байдлын үеийн санхүүгийн зохицуулалт зэрэг \"хамгаалагдсан\" төсөв байдаг уу?",0,{"$f":"'E03'!$E$18","v":0}]
[null,"E3","P3.3",null,"Хотын бизнес-олон нийтийн салбарууд даатгалд хэр хамрагддаг вэ?",0,{"$f":"'E03'!$E$29","v":0}]
[null,"E3","P3.4",null,"Салбарууд, бизнес, нийгмийн хэсгүүд гамшгийг тэсвэрлэх чадавхийг сайжруулах чиглэлээр ямар идэвхжүүлэлтийг хэрэглэдэг вэ? ",0,{"$f":"'E03'!$E$40","v":0}]
[null,"E4","P4.1",null,"Эдийн засгийн үйл ажиллагаа, хөдөө аж ахуйн үйлдвэрлэл, хүн амын төвлөрсөн газруудад эрсдэлийн үзүүлж болзошгүй нөлөөллийг тооцоолж, хотыг зөв бүсчилсэн үү?",0,{"$f":"'E04'!$E$7","v":0}]
[null,"E4","P4.2",null,"Хотын шинэ төлөвлөлт, хэрэгжилт гамшгийг тэсвэрлэх чадавхийг сайжруулах асуудлыг идэвхжүүлж байна уу?",0,{"$f":"'E04'!$E$18","v":0}]
[null,"E4","P4.3",null,"Барилгын дүрэм, журам, стандарт байдаг уу? Тэдгээр нь хотод тохиолддог аюул, эрсдэлийг шийдвэрлэдэг үү? Эдгээр стандарт нь тогтмол шинэчлэгддэг үү?",0,{"$f":"'E04'!$E$18","v":0}]
[null,"E4","P4.4",null," Бүсчлэлийн журам, барилгын дүрэм журам, стандарт өргөнөөр ашиглагдаж, ёсчлон мөрдүүлж, шалгадаг уу?",0,{"$f":"'E04'!$E$40","v":0}]
[null,"E5","P5.1",null,"Байгалийн баялаг гэхээс илүүтэйгээр байгаль хотод ямар үүрэгтэйг эсвэл ямар үйлчилгээ үзүүлдгийг хот мэддэг үү? ",0,{"$f":"'E05'!$E$7","v":0}]
[null,"E5","P5.2",null,"Хотын хөгжил, дэд бүтцийн гол төслүүдэд ногоон, цэнхэр дэд бүтцийг бодлогоор дэмждэг үү?",0,{"$f":"'E05'!$E$18","v":0}]
[null,"E5","P5.3",null,"Хотын хил хязгаараас гадна байгаа байгалийн баялаг хотод экосистемийн үйлчилгээ үзүүлж байдгийг хот мэддэг үү? Эдгээр баялгийг хамгаалах, удирдах талаар хөрш зэргэлдээ засаг захиргааны нэгжтэй хийсэн гэрээ бий юу? ",0,{"$f":"'E05'!$E$29","v":0}]
[null,"E6","P6.1",null,"Хотод гамшгийн эрсдэлийг бууруулах, гамшиг тохиолдсон үед хариу арга хэмжээ авахад шаардлагатай бүх чадвар, туршлага бий юу?",0,{"$f":"'E06'!$E$7","v":0}]
[null,"E6","P6.2",null,"Аюул, эрсдэл, гамшгийн нөхцөл байдлын талаарх мэдээллийг олон нийтэд зөв (ойлгомжтой, хэрэглэж болохуйцаар) хүргэх боломжийг хангах мэдээлэл, суваг бүхий олон нийттэй харилцах, мэдлэг ойлголт өгөх зохион байгуулалттай кампанит ажил явагддаг уу?",0,{"$f":"'E06'!$E$18","v":0}]
[null,"E6","P6.3",null,"Хотын гамшгийг тэсвэрлэх чадавхийг бэхжүүлэх үйл ажиллагаанд хамааралтай бусад байгууллагуудтай энэ талаарх мэдээллийг хэр хуваалцдаг вэ?",0,{"$f":"'E06'!$E$29","v":0}]
[null,"E6","P6.4",null,"Эрсдэл, гамшгийг тэсвэрлэх чадавхийн асуудлаар хотын бүх салбар, түүний дотор захиргаа, бизнес, төрийн бус байгууллага, олон нийтэд зориулагдсан сургалтууд зохион байгуулагддаг уу?",0,{"$f":"'E06'!$E$40","v":0}]
[null,"E6","P6.5",null,"Сургалтын материалууд нь хотод нийтлэг хэрэглэгддэг ихэнх хэл дээр  байдаг уу?",0,{"$f":"'E06'!$E$51","v":0}]
[null,"E6","P6.6",null,"Хот адил төстэй бэрхшээлтэй тулгардаг бусад хотуудтай мэдлэгээ хуваалцаж, тэднээс суралцахыг зорьдог уу?",0,{"$f":"'E06'!$E$62","v":0}]
[null,"E7","P7.1",null,"Анхан шатны буюу олон нийтийн байгууллагууд хотын дотор хөрш зэргэлдээ газар/дүүргүүдийн эрсдэлийг бууруулах, гамшгийн дараах хариу арга хэмжээнд оролцдог уу?",0,{"$f":"'E07'!$E$7","v":0}]
[null,"E7","P7.2",null,"Хотын хамгийн эмзэг байдалтай хүн амд зориулсан тогтмол сургалтын хөтөлбөрүүд байдаг уу?",0,{"$f":"'E07'!$E$18","v":0}]
[null,"E7","P7.3",null,"Бизнесийн хэдэн хувь нь бизнесийн тасралтгүй ажиллагааны баримтжуулсан, сүүлийн 18 сарын хугацаанд тодотгосон төлөвлөгөөтэй вэ?",0,{"$f":"'E07'!$E$29","v":0}]
[null,"E7","P7.4",null,"Гамшгийн эрсдэлийг бууруулах үйл ажиллагаанд хотын иргэдийн оролцоо, харилцаа хэр үр дүнтэй байдаг вэ? ",0,{"$f":"'E07'!$E$40","v":0}]
[null,"E8","P8.1",null,"Нэн чухал дэд бүтцийн гамшгийг тэсвэрлэх чадавхийг сайжруулах нь хотын нэн тэргүүний зорилт мөн үү? Хот нэн чухал дэд бүтцийн төлөвлөгөө/стратегитай, түүнийгээ хэрэгжүүлдэг үү?",0,{"$f":"'E08'!E7","v":0}]
[null,"E8","P8.2",null,"Хамгаалалтын дэд бүтцүүд эрсдэлийн мэдээлэлд үндэслэн сайн төлөвлөгдөж, баригдсан уу?",0,{"$f":"'E08'!E18","v":0}]
[null,"E8","P8.3",null,"Хотод тохиолдож болзошгүй гамшгийн улмаас хотын нилээд хэсэгт эдгээр нэн чухал үйлчилгээ ноцтой тасалдах уу?",0,{"$f":"'E08'!E29","v":0}]
[null,"E8","P8.4",null,"Хотод тохиолдож болзошгүй гамшгийн улмаас хотын нилээд хэсэгт үйлчилгээ ноцтой тасалдах уу? Тасалдал үүсэхэд эрчим хүчний дэд бүтцийн коридор аюулгүй үлдэх үү (цахилгаанд цохиулах аюулгүй байх гэх мэт)",0,{"$f":"'E08'!E40","v":0}]
[null,"E8","P8.5",null,"Хотод тохиолдож болзошгүй гамшгийн улмаас хотын нилээд хэсэгт үйлчилгээ ноцтой тасалдах уу? Тасалдал үүсэхэд тээврийн дэд бүтцийн коридор аюулгүй (үерийн эрсдэлгүй байх гэх мэт), ажилласаар байх уу?",0,{"$f":"'E08'!E51","v":0}]
[null,"E8","P8.6",null,"Хотод тохиолдож болзошгүй гамшгийн улмаас хотын нилээд хэсэгт үйлчилгээ ноцтой тасалдах уу?",0,{"$f":"'E08'!E62","v":0}]
[null,"E8","P8.7",null,"Хотод тохиолдож болзошгүй гамшгийн улмаас олон хүн гэмтэж, бэртвэл эрүүл мэндийн яаралтай тусламж үйлчилгээ үзүүлэх боломжтой юу?",0,{"$f":"'E08'!E73","v":0}]
[null,"E8","P8.8",null,"Хамгийн ноцтой, \"хамгийн магадлалтай\" нөхцөл байдлын улмаас гэмтэл учрах эрсдэлтэй боловсролын байгууллагын барилга байгууламжийн хувь",0,{"$f":"'E08'!E84","v":0}]
[null,"E8","P8.9",null,"Цэргийн болон энгийн байгууллагын дэмжлэгтэйгээр анхны хариу арга хэмжээ авахад шаардлагатай техник, тоног төхөөрөмж бий юу?",0,{"$f":"'E08'!E95","v":0}]
[null,"E9","P9.1",null,"Хот эрт зарлан мэдээлэх,  урьдчилсан мэдээ хүргэх төлөвлөгөө, стандарт үйл ажиллагааны журамтай юу? Эрт зарлан мэдээлэх системээр хотын хүн амын хэдэн хувьд хүрдэг вэ? ",0,{"$f":"'E09'!$E$7","v":0}]
[null,"E9","P9.2",null,"Хотын гамшгийн үед авах арга хэмжээг тусгасан гамшгийн менежментийн / бэлэн байдлын / хор уршгийг арилгах үйл ажиллагааны төлөвлөгөө байдаг уу?",0,{"$f":"'E09'!$E$18","v":0}]
[null,"E9","P9.3",null,"Гамшгийн менежментийн байгууллага нь гамшгийн нөхцөл байдал өрнөсөн үед анхны хариу арга хэмжээ авах үйл ажиллагаанд дэмжлэг болохоор нэмж татах хангалттай бие бүрэлдэхүүнтэй юу? ",0,{"$f":"'E09'!$E$29","v":0}]
[null,"E9","P9.4",null,"Тоног төхөөрөмж, хангалтын зүйлсийн хэрэгцээ шаардлага, түүнчлэн тоног төхөөрөмжийн боломжийг тодорхойлсон уу?",0,{"$f":"'E09'!$E$40","v":0}]
[null,"E9","P9.5",null,"Гамшиг тохиолдсоны дараа хот хүн амаа хоол хүнс, түр хорогдох байраар үргэлжлүүлэн хангаж чадах уу? ",0,{"$f":"'E09'!$E$51","v":0}]
[null,"E9","P9.6",null,"Хамгийн ноцтой, \"хамгийн магадлалтай\" нөхцөл байдал үүссэн үед бүх байгууллагын оролцоотой, стандарт үйл ажиллагааны журмаар ажиллахад зориулагдсан шуурхай ажиллагааны төв бий юу?",0,{"$f":"'E09'!$E$62","v":0}]
[null,"E9","P9.7",null,"Дадлага сургуульд олон нийт, мэргэжлийн байгууллагууд аль аль нь оролцдог уу?",0,{"$f":"'E09'!$E$73","v":0}]
[null,"E10","P10.1",null,"Эдийн засгийг сэргээх болон нийгмийн асуудлыг тусгасан гамшгийн дараах сэргээн босгох үйл ажиллагааны стратеги, үйл явц байдаг уу?",0,{"$f":"'E10'!$E$7","v":0}]
[null,"E10","P10.2",null,"Гамшгийн дараах үнэлгээнд хохирлын дүн шинжилгээ, авсан сургамжийг харгалзан үзэж, дахин барих төслүүдийн төлөвлөлт, хэрэгжилтэд тусгадаг уу?s?",0,{"$f":"'E10'!$E$18","v":0}]

{"sheet":"E01","index":3,"n_rows":33,"n_cols":6,"rows_kept":33,"cut":false,"hidden":false,"merged":[[17,2,20,3],[25,2,25,3],[26,2,26,3],[27,2,27,3],[28,2,31,3],[16,2,16,3],[4,2,4,3],[3,2,3,3],[5,2,5,3],[6,2,9,3],[14,2,14,3],[15,2,15,3]]}
[]
[]
[null,"P1.1 -Төлөвлөх нь"]
[null,"Асуулт","Тайлбар"]
[]
[null,"Хариулт","Баталгаажуулах арга хэрэгсэл (тайлбар, нотолгоо) "]
[null,null,null,null,null,{"$f":"IF(E7=1,TRUE,FALSE)","v":false}]
[null,null,null,null,null,{"$f":"IF(E7=2,TRUE,FALSE)","v":false}]
[null,null,null,null,null,{"$f":"IF(E7=3,TRUE,FALSE)","v":false}]
[null,null,null,null,null,{"$f":"IF(E7=4,TRUE,FALSE)","v":false}]
[null,"Гамшгийг тэсвэрлэх чадавхийг хамгийг ихээр дээшлүүлэх үйл ажиллагаа","Хариуцах байгууллага","Хугацаа"]
[]
[]
[null,"P1.2 - Бүтэц, зохион байгуулалт, зохицуулалт, оролцоо"]
[null,"Асуулт","Тайлбар"]
[]
[null,"Хариулт","Баталгаажуулах арга хэрэгсэл (тайлбар, нотолгоо) "]
[null,null,null,null,null,{"$f":"IF(E18=1,TRUE,FALSE)","v":false}]
[null,null,null,null,null,{"$f":"IF(E18=2,TRUE,FALSE)","v":false}]
[null,null,null,null,null,{"$f":"IF(E18=3,TRUE,FALSE)","v":false}]
[null,null,null,null,null,{"$f":"IF(E18=4,TRUE,FALSE)","v":false}]
[null,"Гамшгийг тэсвэрлэх чадавхийг хамгийг ихээр дээшлүүлэх үйл ажиллагаа","Хариуцах байгууллага","Хугацаа"]
[]
[]
[null,"P1.3 - Integration"]
[null,"Асуулт","Тайлбар"]
[]
[null,"Хариулт","Баталгаажуулах арга хэрэгсэл (тайлбар, нотолгоо) "]
[null,null,null,null,null,{"$f":"IF(E29=1,TRUE,FALSE)","v":false}]
[null,null,null,null,null,{"$f":"IF(E29=2,TRUE,FALSE)","v":false}]
[null,null,null,null,null,{"$f":"IF(E29=3,TRUE,FALSE)","v":false}]
[null,null,null,null,null,{"$f":"IF(E29=4,TRUE,FALSE)","v":false}]
[null,"Гамшгийг тэсвэрлэх чадавхийг хамгийг ихээр дээшлүүлэх үйл ажиллагаа","Хариуцах байгууллага","Хугацаа"]

{"sheet":"E02","index":4,"n_rows":55,"n_cols":6,"rows_kept":55,"cut":false,"hidden":false,"merged":[[3,2,3,3],[4,2,4,3],[5,2,5,3],[6,2,9,3],[47,2,47,3],[48,2,48,3],[49,2,49,3],[50,2,53,3],[14,2,14,3],[15,2,15,3],[36,2,36,3],[37,2,37,3],[38,2,38,3],[39,2,42,3],[16,2,16,3],[17,2,20,3],[25,2,25,3],[26,2,26,3],[27,2,27,3],[28,2,31,3]]}
[]
[]
[null,"P2.1 - Аюулын үнэлгээ"]
[null,"Асуулт","Тайлбар"]
[]
[null,"Хариулт","Баталгаажуулах арга хэрэгсэл (тайлбар, нотолгоо) "]
[null,null,null,null,null,{"$f":"IF(E7=1,TRUE,FALSE)","v":false}]
[null,null,null,null,null,{"$f":"IF(E7=2,TRUE,FALSE)","v":false}]
[null,null,null,null,null,{"$f":"IF(E7=3,TRUE,FALSE)","v":false}]
[null,null,null,null,null,{"$f":"IF(E7=4,TRUE,FALSE)","v":false}]
[null,"Гамшгийг тэсвэрлэх чадавхийг хамгийг ихээр дээшлүүлэх үйл ажиллагаа","Хариуцах байгууллага","Хугацаа"]
[]
[]
[null,"P2.2 - Shared understanding of infrastructure risk"]
[null,"Асуулт","Тайлбар"]
[]
[null,"Хариулт","Баталгаажуулах арга хэрэгсэл (тайлбар, нотолгоо) "]
[null,null,null,null,null,{"$f":"IF(E18=1,TRUE,FALSE)","v":false}]
[null,null,null,null,null,{"$f":"IF(E18=2,TRUE,FALSE)","v":false}]
[null,null,null,null,null,{"$f":"IF(E18=3,TRUE,FALSE)","v":false}]
[null,null,null,null,null,{"$f":"IF(E18=4,TRUE,FALSE)","v":false}]
[null,"Гамшгийг тэсвэрлэх чадавхийг хамгийг ихээр дээшлүүлэх үйл ажиллагаа","Хариуцах байгууллага","Хугацаа"]
[]
[]
[null,"P2.3 -Өртөх болон эмдэг байдлын талаарх мэдлэг, ойлголт "]
[null,"Асуулт","Тайлбар"]
[]
[null,"Хариулт","Баталгаажуулах арга хэрэгсэл (тайлбар, нотолгоо) "]
[null,null,null,null,null,{"$f":"IF(E29=1,TRUE,FALSE)","v":false}]
[null,null,null,null,null,{"$f":"IF(E29=2,TRUE,FALSE)","v":false}]
[null,null,null,null,null,{"$f":"IF(E29=3,TRUE,FALSE)","v":false}]
[null,null,null,null,null,{"$f":"IF(E29=4,TRUE,FALSE)","v":false}]
[null,"Гамшгийг тэсвэрлэх чадавхийг хамгийг ихээр дээшлүүлэх үйл ажиллагаа","Хариуцах байгууллага","Хугацаа"]
[]
[]
[null,"P2.4 - Cascading impacts"]
[null,"Асуулт","Тайлбар"]
[]
[null,"Хариулт","Баталгаажуулах арга хэрэгсэл (тайлбар, нотолгоо) "]
[null,null,null,null,null,{"$f":"IF(E40=1,TRUE,FALSE)","v":false}]
[null,null,null,null,null,{"$f":"IF(E40=2,TRUE,FALSE)","v":false}]
[null,null,null,null,null,{"$f":"IF(E40=3,TRUE,FALSE)","v":false}]
[null,null,null,null,null,{"$f":"IF(E40=4,TRUE,FALSE)","v":false}]
[null,"Гамшгийг тэсвэрлэх чадавхийг хамгийг ихээр дээшлүүлэх үйл ажиллагаа","Хариуцах байгууллага","Хугацаа"]
[]
[]
[null,"P2.5 - Presentation and update process for risk information"]
[null,"Асуулт","Тайлбар"]
[]
[null,"Хариулт","Баталгаажуулах арга хэрэгсэл (тайлбар, нотолгоо) "]
[null,null,null,null,null,{"$f":"IF(E51=1,TRUE,FALSE)","v":false}]
[null,null,null,null,null,{"$f":"IF(E51=2,TRUE,FALSE)","v":false}]
[null,null,null,null,null,{"$f":"IF(E51=3,TRUE,FALSE)","v":false}]
[null,null,null,null,null,{"$f":"IF(E51=4,TRUE,FALSE)","v":false}]
[null,"Гамшгийг тэсвэрлэх чадавхийг хамгийг ихээр дээшлүүлэх үйл ажиллагаа","Хариуцах байгууллага","Хугацаа"]

{"sheet":"E03","index":5,"n_rows":44,"n_cols":6,"rows_kept":44,"cut":false,"hidden":false,"merged":[[15,2,15,3],[3,2,3,3],[4,2,4,3],[5,2,5,3],[6,2,9,3],[14,2,14,3],[36,2,36,3],[37,2,37,3],[38,2,38,3],[39,2,42,3],[16,2,16,3],[17,2,20,3],[25,2,25,3],[26,2,26,3],[27,2,27,3],[28,2,31,3]]}
[]
[]
[null,"P3.1 - Хотод шинэ хөрөнгө оруулалт татах арга замуудыг мэдэх"]
[null,"Асуулт","Тайлбар"]
[]
[null,"Хариулт","Баталгаажуулах арга хэрэгсэл (тайлбар, нотолгоо) "]
[null,null,null,null,null,{"$f":"IF(E7=1,TRUE,FALSE)","v":false}]
[null,null,null,null,null,{"$f":"IF(E7=2,TRUE,FALSE)","v":false}]
[null,null,null,null,null,{"$f":"IF(E7=3,TRUE,FALSE)","v":false}]
[null,null,null,null,null,{"$f":"IF(E7=4,TRUE,FALSE)","v":false}]
[null,"Гамшгийг тэсвэрлэх чадавхийг хамгийг ихээр дээшлүүлэх үйл ажиллагаа","Хариуцах байгууллага","Хугацаа"]
[]
[]
[null,"P3.2 - Онцгой байдлын үеийн зардал зэрэг гамшгийг тэсвэрлэх чадавхийг сайжруулах санхүүгийн төлөвлөгөө, төсөв"]
[null,"Асуулт","Тайлбар"]
[]
[null,"Хариулт","Баталгаажуулах арга хэрэгсэл (тайлбар, нотолгоо) "]
[null,null,null,null,null,{"$f":"IF(E18=1,TRUE,FALSE)","v":false}]
[null,null,null,null,null,{"$f":"IF(E18=2,TRUE,FALSE)","v":false}]
[null,null,null,null,null,{"$f":"IF(E18=3,TRUE,FALSE)","v":false}]
[null,null,null,null,null,{"$f":"IF(E18=4,TRUE,FALSE)","v":false}]
[null,"Гамшгийг тэсвэрлэх чадавхийг хамгийг ихээр дээшлүүлэх үйл ажиллагаа","Хариуцах байгууллага","Хугацаа"]
[]
[]
[null,"P3.3 - Даатгал"]
[null,"Асуулт","Тайлбар"]
[]
[null,"Хариулт","Баталгаажуулах арга хэрэгсэл (тайлбар, нотолгоо) "]
[null,null,null,null,null,{"$f":"IF(E29=1,TRUE,FALSE)","v":false}]
[null,null,null,null,null,{"$f":"IF(E29=2,TRUE,FALSE)","v":false}]
[null,null,null,null,null,{"$f":"IF(E29=3,TRUE,FALSE)","v":false}]
[null,null,null,null,null,{"$f":"IF(E29=4,TRUE,FALSE)","v":false}]
[null,"Гамшгийг тэсвэрлэх чадавхийг хамгийг ихээр дээшлүүлэх үйл ажиллагаа","Хариуцах байгууллага","Хугацаа"]
[]
[]
[null,"P3.4 - Идэвхжүүлэлт"]
[null,"Асуулт","Тайлбар"]
[]
[null,"Хариулт","Баталгаажуулах арга хэрэгсэл (тайлбар, нотолгоо) "]
[null,null,null,null,null,{"$f":"IF(E40=1,TRUE,FALSE)","v":false}]
[null,null,null,null,null,{"$f":"IF(E40=2,TRUE,FALSE)","v":false}]
[null,null,null,null,null,{"$f":"IF(E40=3,TRUE,FALSE)","v":false}]
[null,null,null,null,null,{"$f":"IF(E40=4,TRUE,FALSE)","v":false}]
[null,"Гамшгийг тэсвэрлэх чадавхийг хамгийг ихээр дээшлүүлэх үйл ажиллагаа","Хариуцах байгууллага","Хугацаа"]

{"sheet":"E04","index":6,"n_rows":44,"n_cols":6,"rows_kept":44,"cut":false,"hidden":false,"merged":[[15,2,15,3],[3,2,3,3],[4,2,4,3],[5,2,5,3],[6,2,9,3],[14,2,14,3],[36,2,36,3],[37,2,37,3],[38,2,38,3],[39,2,42,3],[16,2,16,3],[17,2,20,3],[25,2,25,3],[26,2,26,3],[27,2,27,3],[28,2,31,3]]}
[]
[]
[null,"P4.1 - Газар ашиглалтын бүсчлэл"]
[null,"Асуулт","Тайлбар"]
[]
[null,"Хариулт","Баталгаажуулах арга хэрэгсэл (тайлбар, нотолгоо) "]
[null,null,null,null,null,{"$f":"IF(E7=1,TRUE,FALSE)","v":false}]
[null,null,null,null,null,{"$f":"IF(E7=2,TRUE,FALSE)","v":false}]
[null,null,null,null,null,{"$f":"IF(E7=3,TRUE,FALSE)","v":false}]
[null,null,null,null,null,{"$f":"IF(E7=4,TRUE,FALSE)","v":false}]
[null,"Гамшгийг тэсвэрлэх чадавхийг хамгийг ихээр дээшлүүлэх үйл ажиллагаа","Хариуцах байгууллага","Хугацаа"]
[]
[]
[null,"P4.2 - New urban development"]
[null,"Асуулт","Тайлбар"]
[]
[null,"Хариулт","Баталгаажуулах арга хэрэгсэл (тайлбар, нотолгоо) "]
[null,null,null,null,null,{"$f":"IF(E18=1,TRUE,FALSE)","v":false}]
[null,null,null,null,null,{"$f":"IF(E18=2,TRUE,FALSE)","v":false}]
[null,null,null,null,null,{"$f":"IF(E18=3,TRUE,FALSE)","v":false}]
[null,null,null,null,null,{"$f":"IF(E18=4,TRUE,FALSE)","v":false}]
[null,"Гамшгийг тэсвэрлэх чадавхийг хамгийг ихээр дээшлүүлэх үйл ажиллагаа","Хариуцах байгууллага","Хугацаа"]
[]
[]
[null,"P4.3 - Building codes and standards"]
[null,"Асуулт","Тайлбар"]
[]
[null,"Хариулт","Баталгаажуулах арга хэрэгсэл (тайлбар, нотолгоо) "]
[null,null,null,null,null,{"$f":"IF(E29=1,TRUE,FALSE)","v":false}]
[null,null,null,null,null,{"$f":"IF(E29=2,TRUE,FALSE)","v":false}]
[null,null,null,null,null,{"$f":"IF(E29=3,TRUE,FALSE)","v":false}]
[null,null,null,null,null,{"$f":"IF(E29=4,TRUE,FALSE)","v":false}]
[null,"Гамшгийг тэсвэрлэх чадавхийг хамгийг ихээр дээшлүүлэх үйл ажиллагаа","Хариуцах байгууллага","Хугацаа"]
[]
[]
[null,"P4.4 - Application of zoning, building codes and standards"]
[null,"Асуулт","Тайлбар"]
[]
[null,"Хариулт","Баталгаажуулах арга хэрэгсэл (тайлбар, нотолгоо) "]
[null,null,null,null,null,{"$f":"IF(E40=1,TRUE,FALSE)","v":false}]
[null,null,null,null,null,{"$f":"IF(E40=2,TRUE,FALSE)","v":false}]
[null,null,null,null,null,{"$f":"IF(E40=3,TRUE,FALSE)","v":false}]
[null,null,null,null,null,{"$f":"IF(E40=4,TRUE,FALSE)","v":false}]
[null,"Гамшгийг тэсвэрлэх чадавхийг хамгийг ихээр дээшлүүлэх үйл ажиллагаа","Хариуцах байгууллага","Хугацаа"]

{"sheet":"E05","index":7,"n_rows":33,"n_cols":6,"rows_kept":33,"cut":false,"hidden":false,"merged":[[28,2,31,3],[3,2,3,3],[4,2,4,3],[5,2,5,3],[6,2,9,3],[14,2,14,3],[15,2,15,3],[16,2,16,3],[17,2,20,3],[25,2,25,3],[26,2,26,3],[27,2,27,3]]}
[]
[]
[null,"P5.1 - Экосистемийн үүргийг ойлгож, мэдэх нь "]
[null,"Асуулт","Тайлбар"]
[]
[null,"Хариулт","Баталгаажуулах арга хэрэгсэл (тайлбар, нотолгоо) "]
[null,null,null,null,null,{"$f":"IF(E7=1,TRUE,FALSE)","v":false}]
[null,null,null,null,null,{"$f":"IF(E7=2,TRUE,FALSE)","v":false}]
[null,null,null,null,null,{"$f":"IF(E7=3,TRUE,FALSE)","v":false}]
[null,null,null,null,null,{"$f":"IF(E7=4,TRUE,FALSE)","v":false}]
[null,"Гамшгийг тэсвэрлэх чадавхийг хамгийг ихээр дээшлүүлэх үйл ажиллагаа","Хариуцах байгууллага","Хугацаа"]
[]
[]
[null,"P5.2 - Хотын бодлого, хөтөлбөрт ногоон, цэнхэр дэд бүтцийг тусгах нь "]
[null,"Асуулт","Тайлбар"]
[]
[null,"Хариулт","Баталгаажуулах арга хэрэгсэл (тайлбар, нотолгоо) "]
[null,null,null,null,null,{"$f":"IF(E18=1,TRUE,FALSE)","v":false}]
[null,null,null,null,null,{"$f":"IF(E18=2,TRUE,FALSE)","v":false}]
[null,null,null,null,null,{"$f":"IF(E18=3,TRUE,FALSE)","v":false}]
[null,null,null,null,null,{"$f":"IF(E18=4,TRUE,FALSE)","v":false}]
[null,"Гамшгийг тэсвэрлэх чадавхийг хамгийг ихээр дээшлүүлэх үйл ажиллагаа","Хариуцах байгууллага","Хугацаа"]
[]
[]
[null,"P5.3 - Хил дамнасан хүрээлэн буй орчны асуудал"]
[null,"Асуулт","Тайлбар"]
[]
[null,"Хариулт","Баталгаажуулах арга хэрэгсэл (тайлбар, нотолгоо) "]
[null,null,null,null,null,{"$f":"IF(E29=1,TRUE,FALSE)","v":false}]
[null,null,null,null,null,{"$f":"IF(E29=2,TRUE,FALSE)","v":false}]
[null,null,null,null,null,{"$f":"IF(E29=3,TRUE,FALSE)","v":false}]
[null,null,null,null,null,{"$f":"IF(E29=4,TRUE,FALSE)","v":false}]
[null,"Гамшгийг тэсвэрлэх чадавхийг хамгийг ихээр дээшлүүлэх үйл ажиллагаа","Хариуцах байгууллага","Хугацаа"]

{"sheet":"E06","index":8,"n_rows":66,"n_cols":6,"rows_kept":66,"cut":false,"hidden":false,"merged":[[28,2,31,3],[3,2,3,3],[4,2,4,3],[5,2,5,3],[6,2,9,3],[14,2,14,3],[15,2,15,3],[16,2,16,3],[17,2,20,3],[25,2,25,3],[26,2,26,3],[27,2,27,3],[61,2,64,3],[36,2,36,3],[37,2,37,3],[38,2,38,3],[39,2,42,3],[47,2,47,3],[48,2,48,3],[49,2,49,3],[50,2,53,3],[58,2,58,3],[59,2,59,3],[60,2,60,3]]}
[]
[]
[null,"P6.1 - Чадвар, туршлага"]
[null,"Асуулт","Тайлбар"]
[]
[null,"Хариулт","Баталгаажуулах арга хэрэгсэл (тайлбар, нотолгоо) "]
[null,null,null,null,null,{"$f":"IF(E7=1,TRUE,FALSE)","v":false}]
[null,null,null,null,null,{"$f":"IF(E7=2,TRUE,FALSE)","v":false}]
[null,null,null,null,null,{"$f":"IF(E7=3,TRUE,FALSE)","v":false}]
[null,null,null,null,null,{"$f":"IF(E7=4,TRUE,FALSE)","v":false}]
[null,"Гамшгийг тэсвэрлэх чадавхийг хамгийг ихээр дээшлүүлэх үйл ажиллагаа","Хариуцах байгууллага","Хугацаа"]
[]
[]
[null,"P6.2 - Олон нийтийн боловсрол, мэдлэг "]
[null,"Асуулт","Тайлбар"]
[]
[null,"Хариулт","Баталгаажуулах арга хэрэгсэл (тайлбар, нотолгоо) "]
[null,null,null,null,null,{"$f":"IF(E18=1,TRUE,FALSE)","v":false}]
[null,null,null,null,null,{"$f":"IF(E18=2,TRUE,FALSE)","v":false}]
[null,null,null,null,null,{"$f":"IF(E18=3,TRUE,FALSE)","v":false}]
[null,null,null,null,null,{"$f":"IF(E18=4,TRUE,FALSE)","v":false}]
[null,"Гамшгийг тэсвэрлэх чадавхийг хамгийг ихээр дээшлүүлэх үйл ажиллагаа","Хариуцах байгууллага","Хугацаа"]
[]
[]
[null,"P6.3 -Мэдээлэл солилцох"]
[null,"Асуулт","Тайлбар"]
[]
[null,"Хариулт","Баталгаажуулах арга хэрэгсэл (тайлбар, нотолгоо) "]
[null,null,null,null,null,{"$f":"IF(E29=1,TRUE,FALSE)","v":false}]
[null,null,null,null,null,{"$f":"IF(E29=2,TRUE,FALSE)","v":false}]
[null,null,null,null,null,{"$f":"IF(E29=3,TRUE,FALSE)","v":false}]
[null,null,null,null,null,{"$f":"IF(E29=4,TRUE,FALSE)","v":false}]
[null,"Гамшгийг тэсвэрлэх чадавхийг хамгийг ихээр дээшлүүлэх үйл ажиллагаа","Хариуцах байгууллага","Хугацаа"]
[]
[]
[null,"P6.4 - Сургалт зохион байгуулах нь "]
[null,"Асуулт","Тайлбар"]
[]
[null,"Хариулт","Баталгаажуулах арга хэрэгсэл (тайлбар, нотолгоо) "]
[null,null,null,null,null,{"$f":"IF(E40=1,TRUE,FALSE)","v":false}]
[null,null,null,null,null,{"$f":"IF(E40=2,TRUE,FALSE)","v":false}]
[null,null,null,null,null,{"$f":"IF(E40=3,TRUE,FALSE)","v":false}]
[null,null,null,null,null,{"$f":"IF(E40=4,TRUE,FALSE)","v":false}]
[null,"Гамшгийг тэсвэрлэх чадавхийг хамгийг ихээр дээшлүүлэх үйл ажиллагаа","Хариуцах байгууллага","Хугацаа"]
[]
[]
[null,"P6.5 - Languages"]
[null,"Асуулт","Тайлбар"]
[]
[null,"Хариулт","Баталгаажуулах арга хэрэгсэл (тайлбар, нотолгоо) "]
[null,null,null,null,null,{"$f":"IF(E51=1,TRUE,FALSE)","v":false}]
[null,null,null,null,null,{"$f":"IF(E51=2,TRUE,FALSE)","v":false}]
[null,null,null,null,null,{"$f":"IF(E51=3,TRUE,FALSE)","v":false}]
[null,null,null,null,null,{"$f":"IF(E51=4,TRUE,FALSE)","v":false}]
[null,"Гамшгийг тэсвэрлэх чадавхийг хамгийг ихээр дээшлүүлэх үйл ажиллагаа","Хариуцах байгууллага","Хугацаа"]
[]
[]
[null,"P6.6 - Бусдаас  суралцах"]
[null,"Асуулт","Тайлбар"]
[]
[null,"Хариулт","Баталгаажуулах арга хэрэгсэл (тайлбар, нотолгоо) "]
[null,null,null,null,null,{"$f":"IF(E62=1,TRUE,FALSE)","v":false}]
[null,null,null,null,null,{"$f":"IF(E62=2,TRUE,FALSE)","v":false}]
[null,null,null,null,null,{"$f":"IF(E62=3,TRUE,FALSE)","v":false}]
[null,null,null,null,null,{"$f":"IF(E62=4,TRUE,FALSE)","v":false}]
[null,"Гамшгийг тэсвэрлэх чадавхийг хамгийг ихээр дээшлүүлэх үйл ажиллагаа","Хариуцах байгууллага","Хугацаа"]

{"sheet":"E07","index":9,"n_rows":44,"n_cols":6,"rows_kept":44,"cut":false,"hidden":false,"merged":[[15,2,15,3],[3,2,3,3],[4,2,4,3],[5,2,5,3],[6,2,9,3],[14,2,14,3],[36,2,36,3],[37,2,37,3],[38,2,38,3],[39,2,42,3],[16,2,16,3],[17,2,20,3],[25,2,25,3],[26,2,26,3],[27,2,27,3],[28,2,31,3]]}
[]
[]
[null,"P7.1 - Олон нийтийн буюу \"анхан шатны\" байгууллагууд, сүлжээ, сургалтууд"]
[null,"Асуулт","Тайлбар"]
[]
[null,"Хариулт","Баталгаажуулах арга хэрэгсэл (тайлбар, нотолгоо) "]
[null,null,null,null,null,{"$f":"IF(E7=1,TRUE,FALSE)","v":false}]
[null,null,null,null,null,{"$f":"IF(E7=2,TRUE,FALSE)","v":false}]
[null,null,null,null,null,{"$f":"IF(E7=3,TRUE,FALSE)","v":false}]
[null,null,null,null,null,{"$f":"IF(E7=4,TRUE,FALSE)","v":false}]
[null,"Гамшгийг тэсвэрлэх чадавхийг хамгийг ихээр дээшлүүлэх үйл ажиллагаа","Хариуцах байгууллага","Хугацаа"]
[]
[]
[null,"P7.2 - “Хэнийг ч орхихгүй” нийгмийн сүлжээ"]
[null,"Асуулт","Тайлбар"]
[]
[null,"Хариулт","Баталгаажуулах арга хэрэгсэл (тайлбар, нотолгоо) "]
[null,null,null,null,null,{"$f":"IF(E18=1,TRUE,FALSE)","v":false}]
[null,null,null,null,null,{"$f":"IF(E18=2,TRUE,FALSE)","v":false}]
[null,null,null,null,null,{"$f":"IF(E18=3,TRUE,FALSE)","v":false}]
[null,null,null,null,null,{"$f":"IF(E18=4,TRUE,FALSE)","v":false}]
[null,"Гамшгийг тэсвэрлэх чадавхийг хамгийг ихээр дээшлүүлэх үйл ажиллагаа","Хариуцах байгууллага","Хугацаа"]
[]
[]
[null,"P7.3 - Private sector / employers"]
[null,"Асуулт","Тайлбар"]
[]
[null,"Хариулт","Баталгаажуулах арга хэрэгсэл (тайлбар, нотолгоо) "]
[null,null,null,null,null,{"$f":"IF(E29=1,TRUE,FALSE)","v":false}]
[null,null,null,null,null,{"$f":"IF(E29=2,TRUE,FALSE)","v":false}]
[null,null,null,null,null,{"$f":"IF(E29=3,TRUE,FALSE)","v":false}]
[null,null,null,null,null,{"$f":"IF(E29=4,TRUE,FALSE)","v":false}]
[null,"Гамшгийг тэсвэрлэх чадавхийг хамгийг ихээр дээшлүүлэх үйл ажиллагаа","Хариуцах байгууллага","Хугацаа"]
[]
[]
[null,"P7.4 - Иргэдийг оролцуулах арга замууд"]
[null,"Асуулт","Тайлбар"]
[]
[null,"Хариулт","Баталгаажуулах арга хэрэгсэл (тайлбар, нотолгоо) "]
[null,null,null,null,null,{"$f":"IF(E40=1,TRUE,FALSE)","v":false}]
[null,null,null,null,null,{"$f":"IF(E40=2,TRUE,FALSE)","v":false}]
[null,null,null,null,null,{"$f":"IF(E40=3,TRUE,FALSE)","v":false}]
[null,null,null,null,null,{"$f":"IF(E40=4,TRUE,FALSE)","v":false}]
[null,"Гамшгийг тэсвэрлэх чадавхийг хамгийг ихээр дээшлүүлэх үйл ажиллагаа","Хариуцах байгууллага","Хугацаа"]

{"sheet":"E08","index":10,"n_rows":99,"n_cols":6,"rows_kept":99,"cut":false,"hidden":false,"merged":[[69,2,69,3],[70,2,70,3],[71,2,71,3],[72,2,75,3],[28,2,31,3],[3,2,3,3],[4,2,4,3],[5,2,5,3],[6,2,9,3],[14,2,14,3],[15,2,15,3],[16,2,16,3],[17,2,20,3],[25,2,25,3],[26,2,26,3],[27,2,27,3],[61,2,64,3],[36,2,36,3],[37,2,37,3],[38,2,38,3],[39,2,42,3],[47,2,47,3],[48,2,48,3],[49,2,49,3],[50,2,53,3],[58,2,58,3],[59,2,59,3],[60,2,60,3],[94,2,97,3],[80,2,80,3],[81,2,81,3],[82,2,82,3],[83,2,86,3],[91,2,91,3],[92,2,92,3],[93,2,93,3]]}
[]
[]
[null,"P8.1 - Critical infrastructure overview "]
[null,"Асуулт","Тайлбар"]
[]
[null,"Хариулт","Баталгаажуулах арга хэрэгсэл (тайлбар, нотолгоо) "]
[null,null,null,null,null,{"$f":"IF(E7=1,TRUE,FALSE)","v":false}]
[null,null,null,null,null,{"$f":"IF(E7=2,TRUE,FALSE)","v":false}]
[null,null,null,null,null,{"$f":"IF(E7=3,TRUE,FALSE)","v":false}]
[null,null,null,null,null,{"$f":"IF(E7=4,TRUE,FALSE)","v":false}]
[null,"Гамшгийг тэсвэрлэх чадавхийг хамгийг ихээр дээшлүүлэх үйл ажиллагаа","Хариуцах байгууллага","Хугацаа"]
[]
[]
[null,"P8.2 - Protective infrastructure"]
[null,"Асуулт","Тайлбар"]
[]
[null,"Хариулт","Баталгаажуулах арга хэрэгсэл (тайлбар, нотолгоо) "]
[null,null,null,null,null,{"$f":"IF(E18=1,TRUE,FALSE)","v":false}]
[null,null,null,null,null,{"$f":"IF(E18=2,TRUE,FALSE)","v":false}]
[null,null,null,null,null,{"$f":"IF(E18=3,TRUE,FALSE)","v":false}]
[null,null,null,null,null,{"$f":"IF(E18=4,TRUE,FALSE)","v":false}]
[null,"Гамшгийг тэсвэрлэх чадавхийг хамгийг ихээр дээшлүүлэх үйл ажиллагаа","Хариуцах байгууллага","Хугацаа"]
[]
[]
[null,"P8.3 - Цэвэр, бохир ус"]
[null,"Асуулт","Тайлбар"]
[]
[null,"Хариулт","Баталгаажуулах арга хэрэгсэл (тайлбар, нотолгоо) "]
[null,null,null,null,null,{"$f":"IF(E29=1,TRUE,FALSE)","v":false}]
[null,null,null,null,null,{"$f":"IF(E29=2,TRUE,FALSE)","v":false}]
[null,null,null,null,null,{"$f":"IF(E29=3,TRUE,FALSE)","v":false}]
[null,null,null,null,null,{"$f":"IF(E29=4,TRUE,FALSE)","v":false}]
[null,"Гамшгийг тэсвэрлэх чадавхийг хамгийг ихээр дээшлүүлэх үйл ажиллагаа","Хариуцах байгууллага","Хугацаа"]
[]
[]
[null,"P8.4 - Energy "]
[null,"Асуулт","Тайлбар"]
[]
[null,"Хариулт","Баталгаажуулах арга хэрэгсэл (тайлбар, нотолгоо) "]
[null,null,null,null,null,{"$f":"IF(E40=1,TRUE,FALSE)","v":false}]
[null,null,null,null,null,{"$f":"IF(E40=2,TRUE,FALSE)","v":false}]
[null,null,null,null,null,{"$f":"IF(E40=3,TRUE,FALSE)","v":false}]
[null,null,null,null,null,{"$f":"IF(E40=4,TRUE,FALSE)","v":false}]
[null,"Гамшгийг тэсвэрлэх чадавхийг хамгийг ихээр дээшлүүлэх үйл ажиллагаа","Хариуцах байгууллага","Хугацаа"]
[]
[]
[null,"P8.5 - Тээвэр"]
[null,"Асуулт","Тайлбар"]
[]
[null,"Хариулт","Баталгаажуулах арга хэрэгсэл (тайлбар, нотолгоо) "]
[null,null,null,null,null,{"$f":"IF(E51=1,TRUE,FALSE)","v":false}]
[null,null,null,null,null,{"$f":"IF(E51=2,TRUE,FALSE)","v":false}]
[null,null,null,null,null,{"$f":"IF(E51=3,TRUE,FALSE)","v":false}]
[null,null,null,null,null,{"$f":"IF(E51=4,TRUE,FALSE)","v":false}]
[null,"Гамшгийг тэсвэрлэх чадавхийг хамгийг ихээр дээшлүүлэх үйл ажиллагаа","Хариуцах байгууллага","Хугацаа"]
[]
[]
[null,"P8.6 - Харилцаа, холбоо"]
[null,"Асуулт","Тайлбар"]
[]
[null,"Хариулт","Баталгаажуулах арга хэрэгсэл (тайлбар, нотолгоо) "]
[null,null,null,null,null,{"$f":"IF(E62=1,TRUE,FALSE)","v":false}]
[null,null,null,null,null,{"$f":"IF(E62=2,TRUE,FALSE)","v":false}]
[null,null,null,null,null,{"$f":"IF(E62=3,TRUE,FALSE)","v":false}]
[null,null,null,null,null,{"$f":"IF(E62=4,TRUE,FALSE)","v":false}]
[null,"Гамшгийг тэсвэрлэх чадавхийг хамгийг ихээр дээшлүүлэх үйл ажиллагаа","Хариуцах байгууллага","Хугацаа"]
[]
[]
[null,"P8.7 - Эрүүл мэндийн үйлчилгээ"]
[null,"Асуулт","Тайлбар"]
[]
[null,"Хариулт","Баталгаажуулах арга хэрэгсэл (тайлбар, нотолгоо) "]
[null,null,null,null,null,{"$f":"IF(E73=1,TRUE,FALSE)","v":false}]
[null,null,null,null,null,{"$f":"IF(E73=2,TRUE,FALSE)","v":false}]
[null,null,null,null,null,{"$f":"IF(E73=3,TRUE,FALSE)","v":false}]
[null,null,null,null,null,{"$f":"IF(E73=4,TRUE,FALSE)","v":false}]
[null,"Гамшгийг тэсвэрлэх чадавхийг хамгийг ихээр дээшлүүлэх үйл ажиллагаа","Хариуцах байгууллага","Хугацаа"]
[]
[]
[null,"P8.8 - Боловсролын байгууллагын барилга, байгууламж"]
[null,"Асуулт","Тайлбар"]
[]
[null,"Хариулт","Баталгаажуулах арга хэрэгсэл (тайлбар, нотолгоо) "]
[null,null,null,null,null,{"$f":"IF(E84=1,TRUE,FALSE)","v":false}]
[null,null,null,null,null,{"$f":"IF(E84=2,TRUE,FALSE)","v":false}]
[null,null,null,null,null,{"$f":"IF(E84=3,TRUE,FALSE)","v":false}]
[null,null,null,null,null,{"$f":"IF(E84=4,TRUE,FALSE)","v":false}]
[null,"Гамшгийг тэсвэрлэх чадавхийг хамгийг ихээр дээшлүүлэх үйл ажиллагаа","Хариуцах байгууллага","Хугацаа"]
[]
[]
[null,"P8.9 - Хор уршгийг арилгах анхны арга хэмжээ авахад шаардлагатай техник, тоног төхөөрөмж"]
[null,"Асуулт","Тайлбар"]
[]
[null,"Хариулт","Баталгаажуулах арга хэрэгсэл (тайлбар, нотолгоо) "]
[null,null,null,null,null,{"$f":"IF(E95=1,TRUE,FALSE)","v":false}]
[null,null,null,null,null,{"$f":"IF(E95=2,TRUE,FALSE)","v":false}]
[null,null,null,null,null,{"$f":"IF(E95=3,TRUE,FALSE)","v":false}]
[null,null,null,null,null,{"$f":"IF(E95=4,TRUE,FALSE)","v":false}]
[null,"Гамшгийг тэсвэрлэх чадавхийг хамгийг ихээр дээшлүүлэх үйл ажиллагаа","Хариуцах байгууллага","Хугацаа"]

{"sheet":"E09","index":11,"n_rows":77,"n_cols":6,"rows_kept":77,"cut":false,"hidden":false,"merged":[[70,2,70,3],[71,2,71,3],[72,2,75,3],[58,2,58,3],[59,2,59,3],[60,2,60,3],[61,2,64,3],[69,2,69,3],[39,2,42,3],[47,2,47,3],[48,2,48,3],[49,2,49,3],[50,2,53,3],[27,2,27,3],[28,2,31,3],[36,2,36,3],[37,2,37,3],[38,2,38,3],[15,2,15,3],[16,2,16,3],[17,2,20,3],[25,2,25,3],[26,2,26,3],[3,2,3,3],[4,2,4,3],[5,2,5,3],[6,2,9,3],[14,2,14,3]]}
[]
[]
[null,"P9.1 - Эрт зарлан мэдээлэх нь "]
[null,"Асуулт","Тайлбар"]
[]
[null,"Хариулт","Баталгаажуулах арга хэрэгсэл (тайлбар, нотолгоо) "]
[null,null,null,null,null,{"$f":"IF(E7=1,TRUE,FALSE)","v":false}]
[null,null,null,null,null,{"$f":"IF(E7=2,TRUE,FALSE)","v":false}]
[null,null,null,null,null,{"$f":"IF(E7=3,TRUE,FALSE)","v":false}]
[null,null,null,null,null,{"$f":"IF(E7=4,TRUE,FALSE)","v":false}]
[null,"Гамшгийг тэсвэрлэх чадавхийг хамгийг ихээр дээшлүүлэх үйл ажиллагаа","Хариуцах байгууллага","Хугацаа"]
[]
[]
[null,"P9.2 - Гамшгийн менежментийн төлөвлөгөө"]
[null,"Асуулт","Тайлбар"]
[]
[null,"Хариулт","Баталгаажуулах арга хэрэгсэл (тайлбар, нотолгоо) "]
[null,null,null,null,null,{"$f":"IF(E18=1,TRUE,FALSE)","v":false}]
[null,null,null,null,null,{"$f":"IF(E18=2,TRUE,FALSE)","v":false}]
[null,null,null,null,null,{"$f":"IF(E18=3,TRUE,FALSE)","v":false}]
[null,null,null,null,null,{"$f":"IF(E18=4,TRUE,FALSE)","v":false}]
[null,"Гамшгийг тэсвэрлэх чадавхийг хамгийг ихээр дээшлүүлэх үйл ажиллагаа","Хариуцах байгууллага","Хугацаа"]
[]
[]
[null,"P9.3 - Бие бүрэлдэхүүний хангалт / анхны хариу арга хэмжээ авагчдын хэрэгцээ шаардлага"]
[null,"Асуулт","Тайлбар"]
[]
[null,"Хариулт","Баталгаажуулах арга хэрэгсэл (тайлбар, нотолгоо) "]
[null,null,null,null,null,{"$f":"IF(E29=1,TRUE,FALSE)","v":false}]
[null,null,null,null,null,{"$f":"IF(E29=2,TRUE,FALSE)","v":false}]
[null,null,null,null,null,{"$f":"IF(E29=3,TRUE,FALSE)","v":false}]
[null,null,null,null,null,{"$f":"IF(E29=4,TRUE,FALSE)","v":false}]
[null,"Гамшгийг тэсвэрлэх чадавхийг хамгийг ихээр дээшлүүлэх үйл ажиллагаа","Хариуцах байгууллага","Хугацаа"]
[]
[]
[null,"P9.4 - Тоног төхөөрөмж, яаралтай тусламжийн зүйлсийн хэрэгцээ, шаардлага "]
[null,"Асуулт","Тайлбар"]
[]
[null,"Хариулт","Баталгаажуулах арга хэрэгсэл (тайлбар, нотолгоо) "]
[null,null,null,null,null,{"$f":"IF(E40=1,TRUE,FALSE)","v":false}]
[null,null,null,null,null,{"$f":"IF(E40=2,TRUE,FALSE)","v":false}]
[null,null,null,null,null,{"$f":"IF(E40=3,TRUE,FALSE)","v":false}]
[null,null,null,null,null,{"$f":"IF(E40=4,TRUE,FALSE)","v":false}]
[null,"Гамшгийг тэсвэрлэх чадавхийг хамгийг ихээр дээшлүүлэх үйл ажиллагаа","Хариуцах байгууллага","Хугацаа"]
[]
[]
[null,"P9.5 - Хоол хүнс, түр хорогдох байр, гол нэрийн бараа, шатахууны хангалт "]
[null,"Асуулт","Тайлбар"]
[]
[null,"Хариулт","Баталгаажуулах арга хэрэгсэл (тайлбар, нотолгоо) "]
[null,null," ",null,null,{"$f":"IF(E51=1,TRUE,FALSE)","v":false}]
[null,null,null,null,null,{"$f":"IF(E51=2,TRUE,FALSE)","v":false}]
[null,null,null,null,null,{"$f":"IF(E51=3,TRUE,FALSE)","v":false}]
[null,null,null,null,null,{"$f":"IF(E51=4,TRUE,FALSE)","v":false}]
[null,"Гамшгийг тэсвэрлэх чадавхийг хамгийг ихээр дээшлүүлэх үйл ажиллагаа","Хариуцах байгууллага","Хугацаа"]
[]
[]
[null,"P9.6 - Байгууллага хоорондын харилцан ажиллагаа "]
[null,"Асуулт","Тайлбар"]
[]
[null,"Хариулт","Баталгаажуулах арга хэрэгсэл (тайлбар, нотолгоо) "]
[null,null,null,null,null,{"$f":"IF(E62=1,TRUE,FALSE)","v":false}]
[null,null,null,null,null,{"$f":"IF(E62=2,TRUE,FALSE)","v":false}]
[null,null,null,null,null,{"$f":"IF(E62=3,TRUE,FALSE)","v":false}]
[null,null,null,null,null,{"$f":"IF(E62=4,TRUE,FALSE)","v":false}]
[null,"Гамшгийг тэсвэрлэх чадавхийг хамгийг ихээр дээшлүүлэх үйл ажиллагаа","Хариуцах байгууллага","Хугацаа"]
[]
[]
[null,"P9.7 - Дадлага сургууль"]
[null,"Асуулт","Тайлбар"]
[]
[null,"Хариулт","Баталгаажуулах арга хэрэгсэл (тайлбар, нотолгоо) "]
[null,null,null,null,null,{"$f":"IF(E73=1,TRUE,FALSE)","v":false}]
[null,null,null,null,null,{"$f":"IF(E73=2,TRUE,FALSE)","v":false}]
[null,null,null,null,null,{"$f":"IF(E73=3,TRUE,FALSE)","v":false}]
[null,null,null,null,null,{"$f":"IF(E73=4,TRUE,FALSE)","v":false}]
[null,"Гамшгийг тэсвэрлэх чадавхийг хамгийг ихээр дээшлүүлэх үйл ажиллагаа","Хариуцах байгууллага","Хугацаа"]

{"sheet":"E10","index":12,"n_rows":22,"n_cols":6,"rows_kept":22,"cut":false,"hidden":false,"merged":[[15,2,15,3],[16,2,16,3],[17,2,20,3],[3,2,3,3],[4,2,4,3],[5,2,5,3],[6,2,9,3],[14,2,14,3]]}
[]
[]
[null,"P10.1 - Post-event recovery planning – pre-event"]
[null,"Асуулт","Тайлбар"]
[]
[null,"Хариулт","Баталгаажуулах арга хэрэгсэл (тайлбар, нотолгоо) "]
[null,null,null,null,null,{"$f":"IF(E7=1,TRUE,FALSE)","v":false}]
[null,null,null,null,null,{"$f":"IF(E7=2,TRUE,FALSE)","v":false}]
[null,null,null,null,null,{"$f":"IF(E7=3,TRUE,FALSE)","v":false}]
[null,null,null,null,null,{"$f":"IF(E7=4,TRUE,FALSE)","v":false}]
[null,"Гамшгийг тэсвэрлэх чадавхийг хамгийг ихээр дээшлүүлэх үйл ажиллагаа","Хариуцах байгууллага","Хугацаа"]
[]
[]
[null,"P10.2 - Сургамж, сурах явц"]
[null,"Асуулт","Тайлбар"]
[]
[null,"Хариулт","Баталгаажуулах арга хэрэгсэл (тайлбар, нотолгоо) "]
[null,null,null,null,null,{"$f":"IF(E18=1,TRUE,FALSE)","v":false}]
[null,null,null,null,null,{"$f":"IF(E18=2,TRUE,FALSE)","v":false}]
[null,null,null,null,null,{"$f":"IF(E18=3,TRUE,FALSE)","v":false}]
[null,null,null,null,null,{"$f":"IF(E18=4,TRUE,FALSE)","v":false}]
[null,"Гамшгийг тэсвэрлэх чадавхийг хамгийг ихээр дээшлүүлэх үйл ажиллагаа","Хариуцах байгууллага","Хугацаа"]

{"sheet":"About","index":13,"n_rows":0,"n_cols":0,"rows_kept":0,"cut":false,"hidden":false,"merged":[]}